Cogmind - Beta 13 @@@ ROGUE MODE // 2024.06.29 @ 14:24:37 Player: Henotu Result: Destroyed by S-10 Pest with Light Assault Rifle Performance ------------- Evolutions (0) 0 Regions Visited (2) 400 Robots Destroyed (11) 55 Value Destroyed (364) 364 Prototype IDs (0) 0 Alien Tech Used (0) 0 Bonus (19) 19 TOTAL SCORE: 838 Bonus ------- High Alert Combat Kills 19 Cogmind --------- Core Integrity 0/250 Matter 300/300 Energy 30/100 System Corruption 2% Temperature Warm (141) Movement Rolling (100) Location -10/Mines Parts ------- > --- POWER (1) -------- (None) > --- PROPULSION (2) --- Compact Wheel > --- UTILITY (2) ------ (None) > --- WEAPON (2) ------- Particle Gun > --- INVENTORY (5) ---- Light Ion Engine Light Assault Rifle Peak State ------------ > --- POWER ------------ Ion Engine > --- PROPULSION ------- VTOL Module VTOL Module > --- UTILITY ---------- Small Battery Targeting Computer > --- WEAPON ----------- Assault Rifle Assault Rifle > --- INVENTORY -------- Ion Engine Aluminum Leg Compact Wheel Small Laser Particle Gun [Rating: 9] Favorites ----------- Power Ion Engine Engine Ion Engine Power Core Light Nuclear Core Propulsion VTOL Module Wheel Compact Wheel Flight Unit VTOL Module Utility Targeting Computer Storage Small Battery Processor Targeting Computer Weapon Assault Rifle Energy Gun Particle Gun Ballistic Gun Assault Rifle Build | -11 -10 -10 ------- Run | Yrd Mat Min Slots Evolved . | . . . Power . | . . . Propulsion . | . . . Utility . | . . . Weapon . | . . . Parts Attached 18 | 5 5 8 Power 2 | 1 . 1 Engine 1 | 1 . . Core 1 | . . 1 Reactor . | . . . Propulsion 10 | 2 3 5 Treads . | . . . Leg . | . . . Wheel 5 | 2 1 2 Hover . | . . . Flight 5 | . 2 3 Utility 2 | . 2 . Device . | . . . Storage 1 | . 1 . Processor 1 | . 1 . Hackware . | . . . Protection . | . . . Artifact . | . . . Weapon 4 | 2 . 2 Energy Gun 2 | . . 2 Energy Cannon . | . . . Ballistic Gun 2 | 2 . . Ballistic Cannon . | . . . Launcher . | . . . Special Weapon . | . . . Impact Weapon . | . . . Slashing Weapon . | . . . Piercing Weapon . | . . . Special Melee Weapon . | . . . Unidentified Prototypes . | . . . Parts Lost 10 | . 1 9 Power 1 | . . 1 Propulsion 6 | . 1 5 Utility . | . . . Weapon 3 | . . 3 Highest Loss Streak 5 | . 1 5 To Critical Strikes . | . . . Average Slot Usage (%) 65 | . 82 47 Engine 6 | . 12 . Core 1 | . . 3 Wheel 13 | . 22 4 Flight 9 | . 3 15 Storage 1 | . 3 . Processor 5 | . 11 . Energy Gun 5 | . . 10 Ballistic Gun 20 | . 28 13 Naked Turns 14 | . . 14 Heaviest Build 10 | 9 10 9 Greatest Support 26 | 26 26 16 Greatest Overweight (x) 3 | . 3 1 Average Overweight (x) . | . . . Largest Inventory Capacity 5 | 5 5 5 Average Capacity 5 | 5 5 5 Most Carried 5 | 1 5 5 Average Carried 3 | . 2 4 Final Capacity 5 | 5 5 5 Final Carried 5 | 1 5 2 Class Distribution -------------------- 74% | Mutant 25% | Sprinter Dominant Class ---------------- Mutant | -10/Materials Mutant | -10/Mines Resources | -11 -10 -10 ----------- Run | Yrd Mat Min Matter Collected 438 | 170 81 187 Remotely . | . . . Salvage Created 409 | . 81 328 Parts 24 | . 4 20 Haulers Intercepted . | . . . Recyclers Shooed . | . . . Parts Field Recycled . | . . . Retrieved Matter . | . . . Parts Self-Destructed . | . . . Prevented . | . . . Kills | -11 -10 -10 ------- Run | Yrd Mat Min Combat Hostiles Destroyed 11 | . 2 9 Guns 11 | . 2 9 Classes Destroyed 2 | . 1 1 Swarmer 3 | . . 3 Grunt 8 | . 2 6 Best Kill Streak 2 | . 2 2 Combat Bots Only 2 | . 2 2 Max Kills in Single Turn 1 | . 1 1 Gunslinging . | . . . Exploded . | . . . Melee . | . . . Uniques/NPCs Destroyed . | . . . Combat | -11 -10 -10 -------- Run | Yrd Mat Min Hostile Shots Fired 120 | . 8 112 Missed 47 | . 1 46 Damage Taken 787 | . 98 689 Core 256 | . . 256 Absorbed by Shields . | . . . Core Remaining (%) 100 | 100 . . Volleys Fired 30 | . 6 24 Largest 2 | . 2 2 Hottest 105 | . 40 105 Shots Fired 59 | . 12 47 Gun 59 | . 12 47 Cannon . | . . . Launcher . | . . . Special . | . . . Kinetic 28 | . 12 16 Thermal 31 | . . 31 Explosive . | . . . Electromagnetic . | . . . Robot Hit Streak 8 | . 8 5 Robot Miss Streak 2 | . 1 2 Penetration Max . | . . . Secondary Targets 4 | . . 4 Max Gunslinging Chain 1 | . . 1 Shots Hit Robots 36 | . 10 26 Core Hits 22 | . 5 17 Critical Kills . | . . . Critical Parts Destroyed . | . . . Critical Strikes . | . . . Melee Attacks . | . . . Impact . | . . . Slashing . | . . . Piercing . | . . . Sneak Attacks . | . . . Combat Hostiles . | . . . Follow-up Attacks . | . . . Damage Inflicted 449 | . 126 323 Guns 449 | . 126 323 Cannons . | . . . Explosions . | . . . Melee . | . . . Ramming . | . . . Kinetic 222 | . 126 96 Thermal 227 | . . 227 Explosive . | . . . Electromagnetic . | . . . Impact . | . . . Slashing . | . . . Piercing . | . . . Highest Corruption 2 | . 2 2 Average Corruption 2 | . 2 2 Corruption Purged . | . . . Corruption Blocked . | . . . Effects 6 | . 1 5 Message Errors 1 | . 1 . Matter Fused 1 | . . 1 Energy Discharges 1 | . . 1 Data Loss (minor) 2 | . . 2 Data Loss (major) 1 | . . 1 Overload Shots . | . . . Overflow Damage . | . . . Projectiles . | . . . Explosions . | . . . Melee . | . . . Knockbacks . | . . . Impact . | . . . Kinetic . | . . . Secondary . | . . . Self-Inflicted Damage . | . . . Shots . | . . . Rammed . | . . . Targets Rammed . | . . . Kicked . | . . . Crushed . | . . . Highest Temperature 432 | . 8 432 Average Temperature 162 | . 3 173 Received Heat Transfer 243 | . 54 189 Siege Activations . | . . . Robots Corrupted . | . . . Combat Hostiles . | . . . Parts Fried . | . . . Impact Corruptions . | . . . Robots Melted . | . . . Combat Hostiles . | . . . Parts Melted 2 | . . 2 Heat Transferred 534 | . . 534 Parts Sabotaged . | . . . Parts Stolen . | . . . Parts Stripped . | . . . Power Chain Reactions . | . . . Alert | -11 -10 -10 ------- Run | Yrd Mat Min Peak Influence 431 | . 54 431 Initial 21 | . . 21 Average 110 | . 25 223 Maximum Alert Level 2 | . . 2 Low Security (%) 70 | 100 100 32 Level 1 28 | . . 64 Level 2 1 | . . 3 Level 3 . | . . . Level 4 . | . . . Level 5 . | . . . High Security . | . . . Max Security . | . . . Squads Dispatched . | . . . Investigation . | . . . Extermination . | . . . Reinforcement . | . . . Assault . | . . . Garrison . | . . . Intercept . | . . . Searches Triggered . | . . . Construction Impeded . | . . . Haulers Reinforced . | . . . Active Scanning Responses . | . . . Cargo Convoy Interrupts . | . . . Stealth | -11 -10 -10 --------- Run | Yrd Mat Min Distress Signals . | . . . Communications Jammed . | . . . Distress Signals . | . . . Times Spotted 27 | . 2 25 Peak Tracking Total 7 | . 2 7 Tactical Retreats 5 | . . 5 Traps | -11 -10 -10 ------- Run | Yrd Mat Min Traps Triggered 1 | . 1 . Indirectly . | . . . Trap Hack Attempts . | . . . Triggered . | . . . Disarmed . | . . . Reprogrammed . | . . . Reused . | . . . Traps Extracted . | . . . Installed . | . . . Triggered . | . . . Machines | -11 -10 -10 ---------- Run | Yrd Mat Min Machines Disabled 1 | . . 1 Max in Single Turn 1 | . . 1 Machines Repaired . | . . . Machines Dismantled . | . . . Machines Sabotaged . | . . . Overloaded Fab Kills . | . . . Hacking | -11 -10 -10 --------- Run | Yrd Mat Min Machines Accessed 1 | . 1 . Terminals 1 | . 1 . Fabricators . | . . . Repair Stations . | . . . Recycling Units . | . . . Scanalyzers . | . . . Garrison Access . | . . . Total Hacks 2 | . 2 . Successful 1 | . 1 . Failed 1 | . 1 . Catastrophic . | . . . Database Lockouts . | . . . Manual 1 | . 1 . Terminals 2 | . 2 . Fabricators . | . . . Repair Stations . | . . . Recycling Units . | . . . Scanalyzers . | . . . Garrison Access . | . . . Terminal Hacks 1 | . 1 . Emergency Access Points 1 | . 1 . Fabricator Hacks . | . . . Repair Station Hacks . | . . . Recycling Unit Hacks . | . . . Scanalyzer . | . . . Garrison Access Hacks . | . . . Unauthorized Hacks . | . . . Terminals . | . . . Fabricators . | . . . Repair Stations . | . . . Recycling Units . | . . . Scanalyzers . | . . . Garrison Access . | . . . Data Cores Recovered . | . . . Used . | . . . Hacking Detections 1 | . 1 . Full Trace Events . | . . . Feedback Events . | . . . Feedback Blocked . | . . . Robot Schematics Acquired . | . . . Robots Built . | . . . Authchips . | . . . Time . | . . . Total Robot Build Rating . | . . . Part Schematics Acquired . | . . . Parts Built . | . . . Authchips . | . . . Time . | . . . Total Part Build Rating . | . . . Parts Repaired . | . . . Time . | . . . Parts Recycled . | . . . Recycled Matter . | . . . Retrieved Matter . | . . . Retrieved Components . | . . . Parts Scanalyzed . | . . . Part Schematics Acquired . | . . . Parts Damaged . | . . . Bothacking | -11 -10 -10 ------------ Run | Yrd Mat Min Used RIF Installer . | . . . Robots Hacked . | . . . Non-combat . | . . . Combat . | . . . Robot Hacks Applied . | . . . Relay Couplers Released . | . . . Fabnet Peak Effective % . | . . . Robots Rewired . | . . . Allies Hacked . | . . . Hacks Repelled . | . . . Allies | -11 -10 -10 -------- Run | Yrd Mat Min Total Allies . | . . . Largest Group . | . . . Highest-Rated Group . | . . . Highest-Rated Ally . | . . . Total Orders . | . . . Ally Attacks . | . . . Total Damage . | . . . Kills . | . . . Allies Corrupted . | . . . Allies Melted . | . . . Intel | -11 -10 -10 ------- Run | Yrd Mat Min Robot Analysis Total . | . . . Derelict Logs Recovered 1 | . . 1 Drone Launches . | . . . Drone Recoveries . | . . . Exploration | -11 -10 -10 ------------- Run | Yrd Mat Min Turns Passed 677 | 73 304 300 Spaces Moved 973 | 75 359 539 Core 33 | 4 1 28 Treads . | . . . Legs . | . . . Wheels 379 | 71 256 52 Hover . | . . . Flight 561 | . 102 459 Fastest Speed 32 | 50 32 32 Average Speed 55 | 87 73 40 Slowest Speed 200 | 90 200 100 Overloaded Moves . | . . . Propulsion Burnouts . | . . . Robots Hopped 9 | . . 9 Cave-ins Triggered . | . . . Exploration Rate (%) 37 | 4 38 70 Regions Visited 2 Branch Regions 1 Pre-discovered Areas . | . . . Known Exits Taken . | . . . Unknown Exits Taken 2 | 1 1 . Scrap Searched 2 | . . 2 Spaces Dug . | . . . Terrain Destroyed . | . . . Melee . | . . . Projectile . | . . . AOE . | . . . Terrain Rammed . | . . . Walls Destroyed . | . . . Machines Disabled . | . . . Actions | -11 -10 -10 --------- Run | Yrd Mat Min Total 1037 | 80 388 569 Wait 5 | . 5 . Move 953 | 74 358 521 Hop 9 | . . 9 Pick Up 13 | 1 7 5 Fast Attach 8 | 5 3 . Attach 10 | . 2 8 Detach 3 | . 2 1 Swap . | . . . Drop 6 | . 5 1 Fire 30 | . 6 24 Melee . | . . . Ram . | . . . Kick . | . . . Crush . | . . . Escape Stasis . | . . . Rewire . | . . . Trap . | . . . Miscellaneous . | . . . Route ------- -11/Scrapyard -10/Materials -10/Mines History --------- Turn | Location | Event 30 | -11/Scrapyard | Discovered new exit (range 14) 74 | -11/Scrapyard | Entered Materials 309 | -10/Materials | Build established: Mutant 371 | -10/Materials | Discovered new exit (range 14) 378 | -10/Materials | Entered Mines 387 | -10/Mines | Learned Materials terminal intel 536 | -10/Mines | Core integrity fell below 50% 577 | -10/Mines | Lost 5 parts (3n2w) 617 | -10/Mines | Core integrity fell below 20% 678 | -10/Mines | Destroyed by S-10 Pest with Light Assault Rifle Last Messages --------------- lost. G-34 Mercenary destroyed. Switching to secondary target: G-47 Trooper. Lgt. Nuclear Core destroyed. Lgt. Nuclear Core melted. G-47 Trooper destroyed. R-06 Scavenger collects Heat Sink. R-06 Scavenger collects Particle Gun. System corrupted: Component data lost. Acquired 25 matter. Acquired 20 matter. Core Extractor disabled. K-01 Serf collects debris. S-10 Pest destroyed. G-47 Trooper destroyed. Switching to secondary target: G-34 Mercenary. Flight Unit destroyed. Acquired 10 matter. G-34 Mercenary destroyed. Sml. Laser destroyed. Map ----- +----------------------------------------------------+ | ?????????????????????????????????????????????????? | | ?????????????????????????????????????????????????? | | ?????????????????????????????????????????????????? | | ?????????????????????????????????????????????????? | | ?????????????????????????????????????????????????? | | ?????????????????????????????????????????????????? | | ?????????????????????????????????????????????????? | | ?????????????????????????????????????????????????? | | ?????????????????????????????????????????????####? | | ?????????????????????????????????????????????? #? | | ??????????????????????????????????????????????# ## | | ?????????????????????????????????????????????## ## | | ????????????????????????????????????????????## | | ???????????????????????????????????????#????# | | ????????????????????????????????????#### #### | | ???????????????????????????????????## | | ?????????????????????????? ???????## | | ?????????????????????????# #??????# #### | | ?????????????????????????# #?????## | | ????????????????????###### #### ## | | ????????????????????# ## ###### ### | | ????????????????????# """ #?##### #?????# ##?? | | ????????????????????# """ #??????# #?????# #??? | | ????????????????????# [%""s #??????# ####### #??? | | ????????????????????# =!=[ #????### ## #### | | ????????????????????# **@! #???## | | ????????????????????######s###??## | | ????????########?????????#=#???##% ##### | | ????????# #########?# #??## ##??# | | ????????# """ #?# #### ##### | | ????????# """ #?# ## ### | | ????????# """ ### ## ### # ### ### | | ????????# """ #?# ## ##?## #?# | | ????????# #?# ## ##???## ##?? | | ????????########?# ###### #### #?????## ####??? | | ?????????????????# #????# #??# #?###### #?????? | | ?????????????????# #????# #??# #?# #?????? | | ?????????????????# #????# ? #?# #### #?????? | | ?????????????????# #????##### #?# #??# #?????? | | ?????????????????# #????????# #?# #??# #?????? | | ?????????????????# #????????# #?# #??# #?????? | | ?????????????????# #????????## ##?# #??# #?????? | | ?????????????????# #####?????#####??# #??# #?????? | | ?????????????????# #????????????# #??# #?????? | | ?????????????????##### #???###??????#!#??# ####### | | ?????????????????????# #??## ##????# #??# | | ?????????????????????# #?## #???# #??# | | ???????????####??##### #?# ##?# #??####### | | ??????????## #### ### $ ### #######??# | | ?????????## ! ## ##### ## !!#??## | +----------------------------------------------------+ Best States ------------- Heat Dissipation 25 Energy Generation 14 Energy Capacity 350 Matter Stores 300 Matter Capacity 300 Sight Range 16 Terrain Scan Density 10 Evasion (%) 63 Targeting Accuracy 5 Item Schematics ----------------- None Robot Schematics ------------------ None Fabricated ------------ Nothing Alien Tech Used ----------------- None Achievements -------------- None Challenges ------------ None Game ------ Seed CoolantXenonShredder Manual? 0 Play Time 00:09:38 Cumulative 3.2 hours Start 2024.06.28 @ 21:36:45 End 2024.06.29 @ 14:24:37 Sessions 3 Manual Loads 0 Difficulty Rogue Special Mode None Game No. 7 Rogue 7 Adventurer 0 Explorer 0 Win Type - Total 0 Types 0/0/0/0/0/0/0/0/0 Lore% 1 Gallery% 8 Achievement% 7 Wizard Run 0 Options --------- Layout 1 ASCII 0 Keyboard 0 Movement Arrows Keybinds 0 Fullscreen 1 Font 24/Smallcaps Map View 50x35 Zoom Use 0% Tactical HUD 0 Map Filters NONE Filters NONE Steam 1 RUN: 4502c4bd-1af6-4e4e-98a6-5120ec2256dd